{"text_format":"1","workbook":"xlsx","n_sheets":1,"sheets":["kalkulacja"],"not_rendered":{"charts":0,"images":1,"macros":1,"external_links":0,"defined_names":12,"comments":1,"pivot_tables":0},"unopened":[],"bounds":{"document_bytes":16777216,"sheet_cells":100000,"rows_first":2000,"rows_last":500,"rows_between":2000,"halvings":0,"cell_chars":16384,"cell_head_chars":4096},"cells_cut":0,"cells_raw":0,"read":"whole","date_system":"1900"}

{"sheet":"kalkulacja","index":0,"n_rows":71,"n_cols":9,"rows_kept":71,"cut":false,"hidden":false,"merged":[[60,1,61,1],[59,2,59,4],[60,2,61,4],[59,6,59,8],[60,6,61,8],[51,6,52,8],[3,1,3,8],[5,1,5,8],[11,2,11,6],[13,2,13,6],[14,2,14,6],[41,2,41,8],[40,2,40,8],[38,6,38,7],[50,2,50,4],[51,2,52,4],[43,2,44,8],[15,2,15,6],[0,4,0,8],[1,4,1,8],[12,2,12,6],[50,6,50,8]]}
[null,null,null,null,"załącznik nr 1 do zarządzenia Nr 76 Rektora UMK"]
[null,"KALKULACJA ZALICZKOWA",null,null,"z dnia 23 maja 2024 r."]
[]
[null,"KALKULACJA OPŁATY ZA PRZEPROWADZENIE POSTĘPOWANIA O NADANIE STOPNIA DOKTORA"]
[]
[null,"/ wypełniamy wyłącznie niebieskie pola /"]
[]
[null,"KALKULACJA NR:",null,"/",null,"/ DR /",{"$f":"YEAR(TODAY())","v":2024},"Toruń,",{"$f":"TODAY()","v":"2024-05-24"}]
[]
[]
[null,"POSTĘPOWANIE O NADANIE STOPNIA DOKTORA"]
[null,"W DZIEDZINIE NAUKI / DZIEDZINIE SZTUKI:"]
[null,"W DYSCYPLINIE:"]
[null,"Pani / Pana"]
[null,null,"/ tytuł zawodowy / stopień naukowy, imię i nazwisko /"]
[null,"dane adresowe:"]
[]
[null,"Stałe elementy kalkulacji:"]
[null,"min. wynagrodzenie profesora uczelni publicznej wg stanu na dzień przygotowania kalkulacji",9370]
[null,"składka ZUS z PPK",0.2114,null,null,null,null,"Toruń,"]
[null,"składka ZUS bez PPK",0.19639999999999999,null,null,null,null,"Bydgoszcz,"]
[]
[null,"Kalkulacja opłaty:"]
[]
[null,"wyszczególnienie","%","ilość / liczba","stawka jednostkowa w zł","wynagrodzenie brutto w zł","wskaźnik narzutów pracodawcy","narzuty pracodawcy\n(składki ZUS)","razem koszty"]
[null,1,{"$f":"B26+1","v":2},{"$f":"C26+1","v":3},4,5,6,7,8]
[null,"Opłata ogółem (I + II), z tego:",null,null,null,null,null,null,{"$f":"I28+I36","v":0}]
[null,"I. Koszty bezpośrednie, z tego:",null,null,null,null,null,null,{"$f":"SUM(I29:I35)","v":0}]
[null,"1a) wynagrodzenie promotora wariant z narzutami pracodawcy",0.83,null,{"$f":"ROUND(C29*$C$19,2)","v":7777.1},{"$f":"ROUND(D29*E29,2)","v":0},0.2114,{"$f":"IF(G29=\"x\",0,ROUND(F29*$G29,2))","v":0},{"$f":"F29+H29","v":0}]
[null,"1b) wynagrodzenie promotora wariant bez narzutów pracodawcy",0.83,null,7777.1,{"$f":"ROUND(D30*E30,2)","v":0},"x",0,{"$f":"F30+H30","v":0}]
[null,"2a) wynagrodzenie promotora pomocniczego wariant z narzutami pracodawcy",0.5,null,4685,0,0.2114,0,0]
[null,"2b) wynagrodzenie promotora pomocniczego wariant bez narzutów pracodawcy",0.5,null,4685,0,"x",0,0]
[null,"3a) wynagrodzenie za recenzje wariant z narzutami pracodawcy",0.27,null,{"$f":"ROUND(C33*$C$19,2)","v":2529.9},{"$f":"ROUND(D33*E33,2)","v":0},0.2114,{"$f":"IF(G33=\"x\",0,ROUND(F33*$G33,2))","v":0},{"$f":"F33+H33","v":0}]
[null,"3b) wynagrodzenie za recenzje wariant bez narzutów pracodawcy",0.27,null,2529.9,0,"x",0,0]
[null,"4) koszty podróży służbowych i noclegów recenzentów","x","x","x","x","x","x"]
[null,"II. Koszty pośrednie, w tego:",null,null,null,null,null,null,{"$f":"I37","v":0}]
[null,"narzut kosztów na pokrycie pozostałych kosztów przeprowadzenia postępowania ",0.2,"x",null,null,null,null,{"$f":"ROUND(SUM(I29:I34)*$C$37,2)","v":0}]
[]
[null,"Opłata z kalkulacji zaliczkowej",null,"x",null,null,{"$f":"IF(B2=\"KALKULACJA KOŃCOWA\",\"PODAJ WARTOŚĆ Z KALKULACJI ZALICZKOWEJ !!!\",\"POZOSTAW NIEWYPEŁNIONE\")","v":"POZOSTAW NIEWYPEŁNIONE"}]
[]
[null,"kwota opłaty do wpłacenia na rachunek bankowy \n(w przypadku ujemnej kwoty konieczny zwrot):",{"$f":"I27-I39","v":0}]
[null,"kwota słownie:",{"$f":"IF(C41<0,\"-\",słownie(C41))","v":" 00/100"}]
[]
[null,"nr rachunku bankowego na który należy dokonać opłatę:","Bank Millennium S.A., ul. Stanisława Żaryna 2A, 02-593 Warszawa, SWIFT: BIGBPLPW, 20 1160 2202 0000 0000 6090 1894"]
[null,"(wybierz właściwy nr rachunku bankowego)"]
[]
[]
[]
[]
[]
[null,null,"….................................................",null,null,null,"…................................................................."]
[null,null,"podpis Przewodniczącego Rady dyscypliny naukowej",null,null,null,"podpis osoby przygotowującej dokument"]
[]
[]
[null,"Przyjmuję warunki finansowe"]
[]
[]
[]
[]
[null,"…..................................................","….................................................",null,null,null,"…................................................................."]
[null,"data i podpis osoby ubiegającej \nsię o nadanie stopnia doktora\n(lub pracodawcy pokrywającego koszty postępowania)","podpis Dziekana Wydziału",null,null,null,"kontrasygnata Kwestora\nkontrasygnata z-cy Kwestora \nds. Collegium Medicum"]
[]
[]
[]
[]
[]
[null,"Bank Millennium S.A., ul. Stanisława Żaryna 2A, 02-593 Warszawa, SWIFT: BIGBPLPW, 20 1160 2202 0000 0000 6090 1894","część toruńska"]
[null,"Bank Pekao S.A. w Warszawie O/Bydgoszcz ul. Grzybowska 53/57 00-950 Warszawa, SWIFT: PKOPPLPW, nr: 51 1240 6478 1111 0000 4949 2293","część bydgoska"]
[]
[null,"KALKULACJA ZALICZKOWA"]
[null,"KALKULACJA KOŃCOWA"]